bitfinex-derivatives/quotes_ETHF0:USTF0_20210109
["timestamp","ask_amount","ask_price","bid_price","bid_amount"]
[1610156455024,4.00959,1181.9,1181.8,50.4007]
[1610156455325,4.00959,1181.9,1181.8,50.65908427]
[1610156456124,4.00959,1181.9,1181.8,51.95182326]
[1610156456937,4.00959,1181.9,1181.8,51.69343899]
[1610156457526,4.00959,1181.9,1181.8,1.29273899]
[1610156458926,4.00959,1181.9,1181.7,0.25857875]
[1610156459526,4.00959,1181.9,1181.8,0.25859653]
[1610156460527,4.00959,1181.9,1181.8,1.55137088]
[1610156462228,2.6864,1182.0,1181.8,1.55137088]
[1610156462427,2.168,1182.3,1181.8,1.55137088]
[1610156462627,6.6704,1182.5,1181.8,1.55137088]
[1610156463028,6.6704,1182.5,1181.9,1.29277773]
[1610156463227,4.00959,1182.0,1181.9,1.29277773]
[1610156463428,2.2158,1182.2,1181.9,1.29277773]
[1610156463829,2.2158,1182.2,1181.9,1.55134145]
[1610156464236,2.2158,1182.2,1182.0,0.25855115]
[1610156465138,6.22539,1182.2,1182.0,0.25855115]
[1610156465638,6.22539,1182.2,1181.9,4.26814803]
[1610156465839,6.22539,1182.2,1181.9,0.25855803]
[1610156466341,6.22539,1182.2,1181.8,0.25859651]
[1610156466741,6.22539,1182.2,1181.7,0.25860961]
[1610156467040,6.22539,1182.2,1181.6,0.25862561]
[1610156467239,4.00959,1181.8,1181.6,0.25862561]
[1610156467440,6.81609,1181.8,1181.5,0.2586369]
[1610156467840,6.81609,1181.8,1181.4,0.25867793]
[1610156468441,6.81609,1181.8,1181.3,0.25868411]
[1610156468743,6.81609,1181.8,1181.1,0.25874142]
[1610156469240,4.00959,1181.2,1181.0,0.25874105]
[1610156469641,2.0632,1181.2,1181.0,0.25874105]
[1610156470140,2.0632,1181.2,1180.9,0.25875776]
[1610156471242,4.00959,1181.0,1180.9,0.25875776]
[1610156471744,4.00959,1181.0,1180.8,0.25877356]
[1610156472141,2.0632,1181.2,1180.8,0.25877356]
[1610156473246,4.00959,1181.1,1180.8,0.25877356]
[1610156473444,4.00959,1181.1,1180.9,0.25881526]
[1610156473744,2.0632,1181.2,1180.9,0.25881526]
[1610156474546,69.727,1181.4,1180.9,0.25881526]
[1610156474947,69.727,1181.4,1180.8,0.25884076]
[1610156475147,71.8813,1181.4,1180.8,0.25884076]
[1610156475347,4.00959,1180.9,1180.8,0.25884076]
[1610156475548,5.90339,1180.9,1180.8,0.25884076]
[1610156475948,5.90339,1180.9,1180.7,0.51768152]
[1610156476349,5.90339,1180.9,1180.8,0.51765812]
[1610156476554,1.8938,1180.9,1180.8,0.51765812]
[1610156476751,1.8938,1180.9,1180.8,1.5528068]
[1610156476951,1.8938,1180.9,1180.8,1.29397901]
[1610156477352,2.1543,1181.4,1180.8,2.07036703]
[1610156477753,2.1543,1181.4,1181.1,0.25873577]
[1610156477953,2.1543,1181.4,1181.3,4.00959]
[1610156478153,2.8065,1181.8,1181.3,4.26829061]
[1610156478354,2.2158,1182.2,1181.3,4.52694942]
[1610156478555,4.00959,1182.4,1181.3,12.29704942]
[1610156478755,4.00959,1182.4,1181.5,0.25864632]
[1610156478956,6.3116,1183.0,1181.5,2.17054632]
[1610156479261,42.96064075,1183.3,1181.7,59.28721032]
[1610156479459,72.99546512,1183.5,1181.9,0.2585776]
[1610156479755,36.3914,1183.4,1182.0,0.25856974]
[1610156479955,38.4151,1183.4,1182.0,0.25856974]
[1610156480461,4.00959,1182.1,1182.0,0.25856974]
[1610156480657,4.00959,1182.1,1181.9,0.25856249]
[1610156481256,4.00959,1182.1,1181.8,0.25856895]
[1610156481760,2.6489,1182.5,1181.8,0.25856895]
[1610156481958,2.6489,1182.5,1181.9,0.25855895]
[1610156482358,2.6489,1182.5,1182.0,0.25854909]
[1610156482956,4.00959,1182.2,1182.0,0.25854909]
[1610156484058,2.6489,1182.5,1181.9,0.25854876]
[1610156484661,2.6489,1182.5,1181.9,54.21284876]
[1610156484961,4.00959,1182.1,1181.9,54.21284876]
[1610156485662,2.6489,1182.5,1181.9,54.21284876]
[1610156485862,30.0,1183.3,1181.9,54.21284876]
[1610156487162,4.00959,1182.1,1182.0,0.25853875]
[1610156488065,4.00959,1182.1,1181.9,4.52665303]
[1610156488265,4.00959,1182.1,1181.9,0.51706303]
[1610156488565,4.00959,1182.1,1182.0,0.25852512]
[1610156490969,4.00959,1182.3,1182.0,0.25852512]
[1610156491169,1.8705,1182.5,1182.0,48.29502512]
[1610156491371,1.8705,1182.5,1182.2,0.2585074]
[1610156491569,30.0,1183.3,1182.3,0.25849702]
[1610156491869,38.4151,1183.4,1182.3,0.25849702]
[1610156492270,38.4151,1183.4,1182.2,0.25849957]
[1610156492970,38.4151,1183.4,1182.1,1.55079002]
[1610156493170,4.00959,1182.3,1182.1,0.25852142]
[1610156493370,4.00959,1182.3,1182.0,0.25852803]
[1610156495972,4.00959,1182.3,1182.1,0.25850829]
[1610156496173,4.00959,1182.3,1182.2,0.25850487]
[1610156496773,4.00959,1182.3,1182.1,0.25850547]
[1610156497173,4.00959,1182.3,1182.2,1.2924172]
[1610156498675,4.00959,1182.3,1182.1,1.29251458]
[1610156500275,34.00959,1182.3,1182.1,1.29251458]
[1610156501777,2.0741,1182.5,1181.8,1.29297468]
[1610156501778,30.0,1182.2,1181.8,1.29297468]
[1610156502176,32.7923,1182.2,1181.8,1.29297468]
[1610156502977,32.7923,1182.2,1181.5,1.29306218]
[1610156503177,4.00959,1181.6,1181.5,1.29306218]
[1610156505480,2.7967,1181.7,1181.5,1.29306218]
[1610156505879,2.7923,1182.2,1181.5,1.29306218]
[1610156506081,2.7923,1182.2,1181.5,0.25860728]
[1610156506478,2.7923,1182.2,1181.6,0.25859988]
[1610156507079,2.0741,1182.5,1181.7,0.25858705]
[1610156507279,4.00959,1182.1,1181.8,4.00959]
[1610156509279,2.3506,1182.2,1182.0,4.00959]
[1610156510082,2.3506,1182.2,1182.1,1.29242068]
[1610156510383,2.3506,1182.2,1182.1,64.21452068]
[1610156510879,6.3953,1183.2,1182.1,64.47302962]
[1610156511380,6.3953,1183.2,1182.7,4.00959]
[1610156513283,4.00959,1182.8,1182.7,4.00959]
[1610156513584,4.00959,1182.8,1182.2,0.25847704]
[1610156513784,4.00959,1182.8,1182.1,68.56700497]
[1610156514184,4.00959,1182.8,1182.1,68.3085]
[1610156515184,4.00959,1182.6,1182.3,4.00959]
[1610156515786,4.00959,1182.6,1182.2,1.2922375]
[1610156515787,34.00959,1182.6,1182.2,1.2922375]
[1610156516084,30.0,1182.6,1182.2,1.2922375]
[1610156516888,2.7919,1182.7,1182.2,1.2922375]
[1610156517187,2.7919,1182.7,1182.2,4.00959]
[1610156517188,4.00959,1182.3,1182.2,4.00959]
[1610156518488,2.7919,1182.7,1182.2,5.30188433]
[1610156519192,4.00959,1182.6,1182.2,62.71298433]
[1610156519389,2.7919,1182.7,1182.2,62.71298433]
[1610156519891,2.7919,1182.7,1182.2,61.42069]
[1610156520596,2.7919,1182.7,1182.2,61.67917132]
[1610156521099,2.7919,1182.7,1182.2,61.42069]
[1610156521295,6.80149,1182.7,1182.4,4.00959]
[1610156521797,6.80149,1182.7,1182.2,57.66958288]
[1610156521997,6.80149,1182.7,1182.2,57.4111]
[1610156522197,2.7919,1182.7,1182.2,57.4111]
[1610156522498,32.2357,1183.0,1182.2,57.4111]
[1610156522697,2.3632,1182.7,1182.2,57.4111]
[1610156522897,2.3632,1182.7,1182.3,1.29228817]
[1610156523198,4.00959,1182.4,1182.3,1.29228817]
[1610156526697,2.3632,1182.7,1182.3,1.29228817]
[1610156527097,32.3632,1182.7,1182.3,1.29228817]
[1610156527297,4.00959,1182.4,1182.3,1.29228817]
[1610156527998,4.00959,1182.4,1182.3,10.79938817]
[1610156528298,2.3632,1182.7,1182.3,1.29228817]
[1610156528501,2.3632,1182.7,1182.4,54.9572]
[1610156528700,2.2357,1183.0,1182.4,54.9572]
[1610156529101,30.0,1183.2,1182.4,54.9572]
[1610156529302,30.0,1183.2,1182.7,4.00959]
[1610156529702,30.0,1183.2,1182.4,54.9572]
[1610156531306,4.00959,1182.5,1182.4,54.9572]
[1610156532806,4.00959,1182.5,1182.4,56.24967116]
[1610156533609,4.00959,1182.5,1182.4,1.29247116]
[1610156533910,34.00959,1182.5,1182.4,1.29247116]
[1610156535107,30.0,1182.5,1182.4,1.29247116]
[1610156535606,34.00959,1182.5,1182.4,1.29247116]
[1610156535808,34.00959,1182.5,1181.8,1.29315984]
[1610156536507,34.00959,1182.5,1181.7,61.4609]
[1610156536911,34.00959,1182.5,1181.4,0.25863013]
[1610156537210,30.0,1182.2,1181.4,0.25863013]
[1610156537614,34.00959,1181.5,1181.3,0.25865942]
[1610156538010,34.00959,1181.5,1181.2,0.25867959]
[1610156538610,4.00959,1181.5,1181.4,1.29351611]
[1610156539111,3.98794184,1181.5,1181.4,1.29351611]
[1610156539411,33.98794184,1181.5,1181.4,1.29351611]
[1610156539916,33.98794184,1181.5,1181.1,4.26827981]
[1610156540212,3.98794184,1181.5,1181.1,4.26827981]
[1610156540711,3.98794184,1181.5,1181.2,0.25868635]
[1610156540914,3.98794184,1181.5,1181.1,4.26827726]
[1610156541112,3.98794184,1181.5,1181.1,11.40617726]
[1610156541314,3.98794184,1181.5,1181.2,0.25867232]
[1610156542712,33.98794184,1181.5,1181.2,0.25867232]
[1610156543012,33.98794184,1181.5,1181.1,11.40617673]
[1610156543512,33.98794184,1181.5,1181.1,7.39658673]
[1610156543712,4.00959,1181.2,1181.1,7.39658673]
[1610156543913,34.00959,1181.2,1181.1,7.39658673]
[1610156544113,34.00959,1181.2,1181.1,7.1379]
[1610156544312,34.00959,1181.2,1181.1,8.43155597]
[1610156544612,30.0,1181.2,1181.1,8.43155597]
[1610156544813,30.0,1181.2,1181.1,8.6902592]
[1610156545112,30.0,1181.5,1181.1,8.6902592]
[1610156545812,4.00959,1181.2,1181.1,8.6902592]
[1610156548516,4.00959,1181.2,1181.1,8.94900547]
[1610156549915,4.00959,1181.2,1181.1,8.43155597]
[1610156551217,4.00959,1181.2,1181.1,8.94901578]
[1610156552421,34.00959,1181.2,1181.1,1.81111578]
[1610156552620,34.00959,1181.2,1181.1,1.29365597]
[1610156552923,30.0,1181.2,1181.1,1.29365597]
[1610156554022,34.00959,1181.2,1181.1,1.29365597]
[1610156554623,34.00959,1181.2,1180.8,1.29402784]
[1610156555124,4.00959,1181.2,1180.8,1.29402784]
[1610156555325,34.00959,1181.2,1180.8,1.29402784]
[1610156555925,34.00959,1181.2,1180.7,1.55287212]
[1610156556125,4.00959,1180.8,1180.7,1.55287212]
[1610156556326,2.843,1181.3,1180.7,1.55287212]
[1610156556526,2.843,1181.3,1180.9,70.4257]
[1610156556928,2.843,1181.3,1180.9,70.6844915]
[1610156557427,2.843,1181.3,1181.0,1.5524658]
[1610156557927,2.843,1181.3,1181.1,0.25877272]
[1610156558127,4.00959,1181.4,1181.1,4.26836272]
[1610156558327,4.00959,1181.4,1181.1,4.00959]
[1610156558927,4.00959,1181.4,1181.2,1.29368735]
[1610156559727,34.00959,1181.4,1181.2,1.29368735]
[1610156562129,34.00959,1181.4,1181.0,1.29382117]
[1610156562630,31.8323,1181.3,1181.0,1.29382117]
[1610156564031,4.00959,1181.1,1181.0,1.29382117]
[1610156564934,1.8323,1181.3,1181.0,1.29382117]
[1610156565237,1.8323,1181.3,1181.0,1.55258681]
[1610156565636,1.8323,1181.3,1181.1,0.25875948]
[1610156566136,5.84189,1181.3,1181.2,4.00959]
[1610156566335,5.84189,1181.3,1181.2,14.37223102]
[1610156567440,5.84189,1181.3,1181.2,14.11349]
[1610156567639,5.84189,1181.3,1181.2,15.4070163]
[1610156568141,5.84189,1181.3,1181.2,15.66576114]
[1610156568841,5.84189,1181.3,1181.2,15.4070163]
[1610156574147,1.8323,1181.3,1181.2,15.4070163]
[1610156574548,2.569,1181.6,1181.2,15.4070163]
[1610156574750,34.00959,1181.7,1181.2,15.4070163]
[1610156574953,34.00959,1181.7,1181.2,15.66576237]
[1610156576153,34.00959,1181.7,1181.4,4.00959]
[1610156577655,34.00959,1181.7,1181.5,1.29346629]
[1610156577954,30.0,1182.2,1181.5,1.29346629]
[1610156578157,6.33259,1182.3,1181.8,4.00959]
[1610156579059,2.323,1182.3,1181.9,1.2930471]
[1610156579259,2.8079,1182.7,1181.9,1.2930471]
[1610156579657,30.0,1182.8,1182.3,57.2231]
[1610156580058,30.0,1183.1,1182.3,57.2231]
[1610156580256,34.00959,1183.1,1183.0,69.3356]
[1610156580557,30.0,1183.4,1183.0,69.3356]
[1610156581158,30.92616191,1183.8,1183.0,69.3356]
[1610156581356,36.86712152,1183.9,1183.0,69.3356]
[1610156581558,30.0,1183.7,1183.0,69.3356]
[1610156581757,32.762,1183.7,1183.0,69.3356]
[1610156582157,32.762,1183.7,1183.4,4.00959]
[1610156582658,2.762,1183.7,1183.6,57.8053]
[1610156584163,4.00959,1184.4,1183.6,61.81489]
[1610156584357,4.00959,1184.4,1184.3,48.4309]
[1610156584559,30.53196729,1184.8,1184.3,48.4309]
[1610156584960,30.56141207,1184.9,1183.6,4.00959]
[1610156585263,30.61155584,1185.1,1183.6,4.00959]
[1610156585459,30.61155584,1185.1,1184.9,50.0965]
[1610156585661,30.56904432,1185.2,1184.9,50.0965]
[1610156586072,30.58048398,1185.3,1184.9,50.0965]
[1610156586263,37.07799685,1185.4,1185.2,4.00959]
[1610156586459,37.07799685,1185.4,1185.3,7.8378]
[1610156586660,6.4819,1185.4,1185.3,7.8378]
[1610156587764,30.63668585,1185.7,1185.3,7.8378]
[1610156587961,11.15724135,1185.8,1185.3,7.8378]
[1610156587962,30.64221091,1185.8,1185.3,7.8378]
[1610156588167,30.64221091,1185.8,1185.5,4.00959]
[1610156588363,30.65456536,1185.9,1185.5,4.00959]
[1610156588664,30.65456536,1185.9,1185.7,55.9539]
[1610156589063,30.69041186,1186.0,1185.7,55.9539]
[1610156589263,41.88662561,1186.1,1185.7,55.9539]
[1610156590068,30.71031911,1186.1,1185.7,55.9539]
[1610156590366,4.00959,1185.8,1185.7,59.96349]
[1610156592366,4.00959,1185.8,1185.7,4.00959]
[1610156592665,4.00959,1185.8,1185.0,2.2945]
[1610156592666,4.00959,1185.8,1185.3,47.8542]
[1610156592867,2.3426,1185.9,1185.3,47.8542]
[1610156593168,32.3426,1185.9,1185.3,47.8542]
[1610156593568,2.3426,1185.9,1185.3,47.8542]
[1610156593868,44.191041,1185.9,1185.3,47.8542]
[1610156594170,2.3426,1185.9,1185.3,47.8542]
[1610156594372,4.00959,1185.6,1185.5,4.00959]
[1610156594769,2.3426,1185.9,1185.7,51.518]
[1610156595571,30.70719152,1186.2,1185.7,51.518]
[1610156595773,30.68578463,1186.3,1185.5,4.00959]
[1610156596172,11.17462144,1186.4,1185.1,2.8027]
[1610156596173,30.68698689,1186.4,1186.0,59.2927]
[1610156596375,30.68983338,1186.5,1185.4,2.8379]
[1610156596573,30.68983338,1186.5,1186.3,70.41919]
[1610156596775,41.88182219,1186.6,1186.3,4.00959]
[1610156596979,41.88182219,1186.6,1185.4,2.8379]
[1610156597174,2.2675,1186.6,1185.4,2.8379]
[1610156597375,2.2675,1186.6,1186.3,52.5911]
[1610156598580,30.83674131,1187.2,1186.3,52.5911]
[1610156598780,30.83674131,1187.2,1187.1,8.8711]
[1610156598978,46.0887607,1187.3,1187.0,4.00959]
[1610156599178,42.11467616,1187.5,1187.0,4.00959]
[1610156599378,42.11467616,1187.5,1187.3,67.5945]
[1610156599579,42.10814881,1187.6,1187.3,67.5945]
[1610156599778,42.10814881,1187.6,1187.0,4.00959]
[1610156600079,44.74884881,1187.6,1187.3,58.6771]
[1610156600278,5.10550707,1187.5,1187.3,58.6771]
[1610156600481,30.82685789,1187.5,1187.3,58.6771]
[1610156600778,2.6407,1187.6,1187.3,58.6771]
[1610156600979,33.45430958,1187.6,1187.3,58.6771]
[1610156601179,33.45430958,1187.6,1187.5,4.00959]
[1610156601379,2.6407,1187.6,1187.5,4.00959]
[1610156601578,2.6407,1187.6,1186.6,160.2719]
[1610156601779,2.6407,1187.6,1186.4,1.8349]
[1610156602084,2.6407,1187.6,1187.3,64.9448]
[1610156602282,2.6407,1187.6,1186.8,1.7925]
[1610156602685,2.1274,1187.9,1186.8,1.7925]
[1610156603085,2.1274,1187.9,1187.8,49.1572]
[1610156603687,2.1274,1187.9,1187.8,4.00959]
[1610156603882,42.1511846,1188.7,1187.9,58.9959]
[1610156604284,42.19069542,1188.9,1187.9,58.9959]
[1610156604884,29.38764873,1188.9,1187.9,58.9959]
[1610156605084,42.20553426,1189.0,1187.9,58.9959]
[1610156605584,46.21512426,1189.0,1188.8,4.00959]
[1610156605783,4.00959,1189.0,1188.8,4.00959]
[1610156606584,4.00959,1189.0,1188.8,11.20449]
[1610156606884,46.2890207,1189.0,1187.5,2.1475]
[1610156607085,48.3444207,1189.0,1188.3,47.425]
[1610156607285,6.06499,1189.0,1188.3,47.425]
[1610156607487,2.0554,1189.0,1187.5,2.40490616]
[1610156607690,2.0554,1189.0,1187.8,2.3745]
[1610156607887,2.0554,1189.0,1188.8,47.8768]
[1610156608489,2.0554,1189.0,1188.9,4.00959]
[1610156608890,2.0554,1189.0,1188.6,56.1193]
[1610156609090,2.0554,1189.0,1187.9,0.25730672]
[1610156609690,2.0554,1189.0,1187.8,0.51461343]
[1610156609691,2.0554,1189.0,1187.8,0.2573429]
[1610156609991,2.0554,1189.0,1187.6,68.7763]
[1610156610394,42.21997004,1188.9,1187.6,68.7763]
[1610156610697,44.28335164,1189.0,1187.6,68.7763]
[1610156610891,4.00959,1188.1,1187.8,4.00959]
[1610156611092,6.54289,1188.1,1187.8,4.00959]
[1610156611893,2.5333,1188.1,1187.6,68.7763]
[1610156613100,2.5333,1188.1,1187.6,4.00959]
[1610156613101,6.76179,1187.8,1187.6,4.00959]
[1610156613298,6.76179,1187.8,1187.3,68.3004]
[1610156613496,2.7522,1187.8,1187.1,69.9316]
[1610156614995,4.00959,1187.7,1187.5,4.00959]
[1610156615999,2.7522,1187.8,1187.1,69.9316]
[1610156618100,2.7522,1187.8,1186.3,0.25761376]
[1610156618101,42.11686399,1187.9,1186.3,0.25761376]
[1610156618303,44.67732655,1188.1,1187.0,59.0896]
[1610156618701,2.5333,1188.1,1186.6,0.25756309]
[1610156618902,42.14714196,1188.2,1188.0,4.00959]
[1610156619101,42.15072667,1188.3,1187.7,57.1762]
[1610156619302,42.16189334,1188.4,1187.7,57.1762]
[1610156619802,42.1858896,1188.6,1187.7,57.1762]
[1610156620402,42.201513,1188.7,1187.7,57.1762]
[1610156620904,4.00959,1188.1,1187.8,4.00959]
[1610156621202,6.82389,1188.1,1187.2,66.4869]
[1610156621802,2.8143,1188.1,1187.2,66.4869]
[1610156622902,4.00959,1187.8,1187.5,4.00959]
[1610156623103,6.80539,1187.8,1187.5,4.00959]
[1610156625507,2.7958,1187.8,1187.2,66.4869]
[1610156627609,2.7958,1187.8,1187.5,4.00959]
[1610156628308,2.8143,1188.1,1187.5,4.00959]
[1610156628611,42.25097104,1188.4,1187.7,57.805]
[1610156629210,13.32865684,1188.6,1187.7,57.805]
[1610156629211,42.28032261,1188.6,1187.7,57.805]
[1610156629410,42.29562713,1188.7,1187.7,57.805]
[1610156629812,4.00959,1188.4,1188.3,4.00959]
[1610156630112,6.78699,1188.4,1188.3,13.75179]
[1610156630812,2.7774,1188.4,1187.2,0.25748361]
[1610156631218,2.7774,1188.4,1187.1,55.48147647]
[1610156631513,2.7774,1188.4,1187.1,55.224]
[1610156631715,2.7774,1188.4,1187.3,1.28731355]
[1610156632016,4.00959,1187.7,1187.3,1.28731355]
[1610156632313,2.7796,1187.7,1187.3,1.28731355]
[1610156633115,2.7796,1187.7,1187.2,4.00959]
[1610156635617,2.7796,1187.7,1187.2,4.267075]
[1610156635817,2.7796,1187.7,1187.3,1.28704398]
[1610156636017,2.7796,1187.7,1187.6,4.00959]
[1610156637318,6.78699,1188.4,1187.6,70.79769]
[1610156638020,2.7774,1188.4,1188.1,4.00959]
[1610156638220,2.7774,1188.4,1188.1,12.20129]
[1610156638420,41.91889833,1188.8,1188.1,4.00959]
[1610156638621,41.91889833,1188.8,1188.3,51.0134]
[1610156638922,41.94114101,1188.9,1188.3,51.0134]
[1610156639120,44.01080616,1189.0,1188.3,51.0134]
[1610156639622,2.0554,1189.0,1188.3,51.0134]
[1610156640222,48.48311296,1189.1,1188.3,51.0134]
[1610156640724,48.48311296,1189.1,1188.9,4.00959]
[1610156641221,50.42111296,1189.1,1188.3,51.0134]
[1610156641523,42.03378927,1189.0,1188.3,51.0134]
[1610156642422,42.03378927,1189.0,1187.4,0.25742214]
[1610156642625,42.03378927,1189.0,1187.9,68.8064]
[1610156643123,42.03378927,1189.0,1187.5,4.00959]
[1610156643124,6.28499,1188.0,1187.5,4.00959]
[1610156643423,6.28499,1188.0,1187.5,55.38029]
[1610156643424,2.2754,1188.0,1187.5,55.38029]
[1610156643826,2.2754,1188.0,1187.5,51.3707]
[1610156644527,2.2754,1188.0,1187.0,0.25749059]
[1610156644728,2.2754,1188.0,1187.1,0.25748674]
[1610156644927,2.2754,1188.0,1187.9,4.00959]
[1610156645828,2.2754,1188.0,1187.9,13.89859]
[1610156646026,2.2754,1188.0,1187.9,9.889]
[1610156646228,2.2754,1188.0,1187.9,62.1018]
[1610156646929,2.2754,1188.0,1187.9,66.11139]
[1610156647531,2.2754,1188.0,1187.9,67.39802591]
[1610156648030,2.2754,1188.0,1187.9,5.29622591]
[1610156648232,43.92227644,1189.1,1188.2,69.5114]
[1610156648530,23.19789759,1189.4,1188.2,69.5114]
[1610156648531,41.99008032,1189.2,1188.2,69.5114]
[1610156649633,4.00959,1188.4,1188.3,4.00959]
[1610156649934,6.43539,1188.4,1188.3,4.00959]
[1610156651438,2.4258,1188.4,1188.3,4.00959]
[1610156651640,2.4258,1188.4,1188.3,12.65609]
[1610156652338,2.4258,1188.4,1188.3,4.00959]
[1610156652735,2.3268,1188.7,1188.3,4.00959]
[1610156653136,2.3268,1188.7,1188.4,51.1991]
[1610156653535,2.3268,1188.7,1188.3,1.28603289]
[1610156653735,2.3268,1188.7,1188.5,4.00959]
[1610156655239,2.3268,1188.7,1188.5,68.55479]
[1610156656442,4.00959,1189.5,1188.5,68.55479]
[1610156657244,4.00959,1189.5,1188.5,4.00959]
[1610156657442,4.00959,1189.5,1189.0,69.4401]
[1610156657642,4.00959,1189.5,1189.4,4.00959]
[1610156657943,42.05687274,1189.8,1189.0,69.4401]
[1610156658143,42.08738857,1189.9,1189.0,69.4401]
[1610156658344,42.07554961,1189.8,1188.6,1.28568193]
[1610156658746,42.07379933,1189.7,1188.6,1.28568193]
[1610156659145,44.55860979,1189.6,1188.6,1.28568193]
[1610156659346,42.00341063,1189.5,1188.6,1.28568193]
[1610156659545,42.00341063,1189.5,1188.4,1.2860867]
[1610156659749,41.94681784,1189.4,1188.8,4.00959]
[1610156659945,41.94681784,1189.4,1188.4,1.2860867]
[1610156660147,30.74757733,1189.3,1188.4,1.2860867]
[1610156660445,44.82314386,1189.3,1188.4,1.2860867]
[1610156660946,44.82314386,1189.3,1188.3,54.9496]
[1610156660947,33.63117733,1189.3,1188.3,54.9496]
[1610156661146,2.8836,1189.3,1188.3,54.9496]
[1610156661647,2.8836,1189.3,1189.2,4.00959]
[1610156662248,2.8836,1189.3,1188.4,1.28589023]
[1610156663748,4.00959,1188.7,1188.6,4.00959]
[1610156664147,5.84509,1188.7,1188.6,4.00959]
[1610156665149,5.84509,1188.7,1188.6,12.29829]
[1610156665350,1.8355,1188.7,1188.6,12.29829]
[1610156665549,1.8355,1188.7,1188.6,4.00959]
[1610156666354,2.6444,1189.0,1188.7,48.3393]
[1610156667356,2.8836,1189.3,1188.7,48.3393]
[1610156667561,2.5198,1189.6,1188.6,4.00959]
[1610156667756,2.5198,1189.6,1189.3,69.6553]
[1610156667957,4.00959,1190.2,1189.3,69.6553]
[1610156668557,42.07983771,1190.3,1189.3,69.6553]
[1610156669758,42.07983771,1190.3,1190.1,4.00959]
[1610156671263,42.07983771,1190.3,1189.3,69.6553]
[1610156671659,44.99223771,1190.3,1189.3,69.6553]
[1610156671861,42.14752161,1190.2,1189.3,69.6553]
[1610156672360,45.07013858,1190.3,1189.8,12.69529]
[1610156672961,2.9124,1190.3,1189.8,12.69529]
[1610156673462,45.00570536,1190.3,1189.8,8.6857]
[1610156673861,42.08441935,1190.2,1189.8,8.6857]
[1610156674261,4.00959,1189.9,1189.2,4.00959]
[1610156674563,4.00959,1189.9,1188.4,0.51431539]
[1610156674564,5.86809,1189.9,1188.5,66.43607087]
[1610156675064,5.86809,1189.9,1188.5,66.1789]
[1610156675265,47.89555236,1189.9,1188.5,66.1789]
[1610156676263,43.88596236,1189.9,1189.2,4.00959]
[1610156677465,42.03210686,1189.8,1188.5,66.1789]
[1610156677666,72.03210686,1189.8,1188.2,0.25723026]
[1610156678266,1.8585,1189.9,1188.0,0.51450065]
[1610156678267,30.0,1189.5,1188.0,0.25727468]
[1610156678466,60.79598665,1189.5,1188.4,4.00959]
[1610156678667,30.79598665,1189.5,1188.4,4.00959]
[1610156678868,42.00874945,1189.5,1188.4,4.00959]
[1610156679571,72.00874945,1189.5,1188.4,4.00959]
[1610156680072,30.79483307,1189.4,1188.4,4.00959]
[1610156680373,41.9981264,1189.4,1188.4,4.00959]
[1610156680575,5.80239,1188.5,1188.4,4.00959]
[1610156682574,5.80239,1188.5,1187.7,61.7093]
[1610156684478,4.00959,1188.3,1188.2,4.00959]
[1610156685878,93.66374,1189.2,1188.2,4.00959]
[1610156686080,41.91304938,1189.3,1188.2,4.00959]
[1610156686480,30.0,1189.3,1188.4,4.00959]
[1610156686679,41.92798187,1189.4,1188.4,4.00959]
[1610156686880,71.92798187,1189.4,1188.4,4.00959]
[1610156687084,71.92798187,1189.4,1187.8,0.25733843]
[1610156687382,41.90899539,1189.3,1187.7,59.445]
[1610156687579,74.88309539,1189.3,1187.7,59.445]
[1610156687780,41.89962037,1189.2,1187.7,59.445]
[1610156688182,44.88299316,1189.3,1187.7,59.70235339]
[1610156688380,2.9741,1189.3,1187.8,0.2573118]
[1610156688580,2.9741,1189.3,1188.6,4.00959]
[1610156689285,2.9741,1189.3,1187.8,1.54352231]
[1610156689483,30.0,1189.2,1187.8,1.28621051]
[1610156690481,4.00959,1188.4,1188.2,4.00959]
[1610156690683,4.00959,1188.4,1187.9,1.28636752]
[1610156690883,5.90379,1188.4,1187.9,1.28636752]
[1610156692082,5.90379,1188.4,1187.3,0.51484646]
[1610156692083,35.90379,1188.4,1187.7,1.28674829]
[1610156692282,5.90379,1188.4,1187.7,1.28674829]
[1610156692482,4.00959,1187.8,1187.7,1.28674829]
[1610156692682,6.51789,1187.8,1187.7,1.28674829]
[1610156693882,6.51789,1187.8,1187.2,0.25745063]
[1610156694485,6.51789,1187.8,1187.7,4.00959]
[1610156695085,6.51789,1187.8,1187.3,1.28686899]
[1610156696387,6.51789,1187.8,1187.2,1.28695509]
[1610156696687,6.51789,1187.8,1187.5,4.00959]
[1610156698092,6.51789,1187.8,1187.6,1.28689045]
[1610156698493,6.51789,1187.8,1187.7,4.00959]
[1610156700593,6.51789,1187.8,1187.5,4.00959]
[1610156701195,6.51789,1187.8,1187.1,0.25745623]
[1610156701395,36.51789,1187.8,1187.0,0.25748391]
[1610156701695,36.51789,1187.8,1186.9,0.25752155]
[1610156701896,36.51789,1187.8,1186.8,0.25752615]
[1610156702097,6.51789,1187.8,1186.8,0.25752615]
[1610156702397,6.51789,1187.8,1187.1,1.28724692]
[1610156702596,4.00959,1187.4,1187.3,4.00959]
[1610156702795,6.17929,1187.4,1187.3,4.00959]
[1610156703802,2.1697,1187.4,1187.3,5.29664497]
[1610156704600,2.5083,1187.8,1187.3,5.29664497]
[1610156704912,2.5083,1187.8,1187.3,5.55407715]
[1610156705100,4.00959,1188.0,1187.3,5.55407715]
[1610156705400,4.00959,1188.0,1187.4,0.25741327]
[1610156706304,4.00959,1188.0,1187.3,5.55406263]
[1610156706601,6.72219,1188.0,1187.8,4.00959]
[1610156706802,6.72219,1188.0,1187.4,0.25741315]
[1610156707003,6.72219,1188.0,1187.3,0.25741559]
[1610156707412,6.72219,1188.0,1187.2,69.96483027]
[1610156708414,6.72219,1188.0,1187.2,69.7074]
[1610156708613,6.72219,1188.0,1187.9,4.00959]
[1610156708815,2.7126,1188.0,1187.9,4.00959]